Cogmind - Beta 15 @@@ ROGUE MODE // 2025.05.30 @ 21:48:17 Player: Demo Result: Destroyed by Y-72 Warden with Railgun Performance ------------- Evolutions (7) 3500 Regions Visited (19) 3800 Robots Destroyed (47) 235 Value Destroyed (1618) 1618 Prototype IDs (222) 4440 Alien Tech Used (0) 0 Bonus (5432) 5432 TOTAL SCORE: 19025 Bonus ------- Pacifist 200 Entered DSFs 500 Met Data Miner 300 Used Data Conduit 3000 Met Warlord at Base 500 MAIN.C Attacked Warlord 500 Warlord Defense Kills 154 Pursued by Intercept 500 Friendly Fire -222 Cogmind --------- Core Integrity 0/1300 Matter 300/300 Energy 79/100 System Corruption 16% Temperature Cool (0) Movement Core (50) Location -3/Research Parts ------- > --- POWER (2) -------- (None) > --- PROPULSION (9) --- Antigrav Array > --- UTILITY (8) ------ (None) > --- WEAPON (2) ------- (None) > --- INVENTORY (5) ---- Advanced Cryofiber Web Stasis Canceller Improved Plasma Cutter Peak State ------------ > --- POWER ------------ Vortex Chain Reactor > --- PROPULSION ------- Gravmag Array Improved Gyrokinetic Inverter Improved Gyrokinetic Inverter Improved Gyrokinetic Inverter Improved Gyrokinetic Inverter Cooled Antigrav System Combat Linear Gravjet Combat Linear Gravjet > --- UTILITY ---------- Advanced Cryofiber Web Advanced Heat Sink Long-range Sensor Array Advanced Signal Interpreter Experimental Reaction Control System Advanced Remote Shield System Mapper Improved System Shield > --- WEAPON ----------- Powered Hammer Plasma Lance > --- INVENTORY -------- Improved Melee Analysis Suite Stasis Canceller Micro-nuke Launcher Improved Plasma Cutter [Rating: 156] Favorites ----------- Power Vortex Chain Reactor Engine Angular Momentum Engine Power Core Neutrino Core Reactor Vortex Chain Reactor Propulsion Improved Gyrokinetic Inverter Treads Armored Treads Wheel Armored Huge Wheel Hover Unit Improved Gyrokinetic Inverter Flight Unit VTOL Module Utility Improved System Shield Device Advanced Cryofiber Web Storage Compact Battery Processor Advanced Signal Interpreter Hackware Improved System Shield Weapon Powered Hammer Energy Gun Backup Laser I Energy Cannon Advanced Plasma Cannon Ballistic Cannon Magnetic Acceleration Cannon Launcher Improved Grenade Launcher Special Weapon RU-N14's Throwing Claymores v3 Impact Weapon Powered Hammer Piercing Weapon Lance Build | -11 -10 -9 -9 -9 -8 -8 -7 -7 -7 -7 -6 -6 -5 -5 -4 -4 -4 -3 -3 ------- Run | Yrd Mat Mat Min Exi Min Mat Fac Low Low Dat Pro Fac Fac DSF Fac Upp War Pro Res Slots Evolved 14 | . . 2 . . . 2 2 . . . . 2 2 . 2 . . . 2 Power 1 | . . . . . . . 1 . . . . . . . . . . . . Propulsion 7 | . . 2 . . . 2 1 . . . . . 1 . 1 . . . . Utility 6 | . . . . . . . . . . . . 2 1 . 1 . . . 2 Weapon . | . . . . . . . . . . . . . . . . . . . . Parts Attached 88 | 2 . 7 1 . 1 2 4 . 1 . . 14 7 9 16 2 13 . 9 Power 5 | . . . . . . . . . . . . . . 1 3 . 1 . . Engine 1 | . . . . . . . . . . . . . . . 1 . . . . Core 2 | . . . . . . . . . . . . . . 1 1 . . . . Reactor 2 | . . . . . . . . . . . . . . . 1 . 1 . . Propulsion 41 | 2 . 3 1 . 1 1 3 . . . . 5 3 5 7 . 5 . 5 Treads 6 | 2 . 3 . . . 1 . . . . . . . . . . . . . Leg . | . . . . . . . . . . . . . . . . . . . . Wheel 3 | . . . . . . . 3 . . . . . . . . . . . . Hover 27 | . . . . . . . . . . . . 3 3 5 6 . 5 . 5 Flight 5 | . . . 1 . 1 . . . . . . 2 . . 1 . . . . Utility 27 | . . 2 . . . 1 1 . . . . 7 2 3 5 2 1 . 3 Device 13 | . . . . . . 1 . . . . . 2 2 1 3 2 . . 2 Storage 1 | . . . . . . . . . . . . . . . 1 . . . . Processor 8 | . . 2 . . . . 1 . . . . 3 . . 1 . . . 1 Hackware 5 | . . . . . . . . . . . . 2 . 2 . . 1 . . Protection . | . . . . . . . . . . . . . . . . . . . . Artifact . | . . . . . . . . . . . . . . . . . . . . Weapon 15 | . . 2 . . . . . . 1 . . 2 2 . 1 . 6 . 1 Energy Gun 2 | . . . . . . . . . . . . . . . . . 2 . . Energy Cannon 2 | . . . . . . . . . . . . 1 . . . . 1 . . Ballistic Gun . | . . . . . . . . . . . . . . . . . . . . Ballistic Cannon 1 | . . . . . . . . . . . . 1 . . . . . . . Launcher 4 | . . 1 . . . . . . 1 . . . . . . . 1 . 1 Special Weapon 1 | . . . . . . . . . . . . . . . . . 1 . . Impact Weapon 3 | . . 1 . . . . . . . . . . 2 . . . . . . Slashing Weapon . | . . . . . . . . . . . . . . . . . . . . Piercing Weapon 2 | . . . . . . . . . . . . . . . 1 . 1 . . Special Melee Weapon . | . . . . . . . . . . . . . . . . . . . . Unidentified Prototypes 6 | . . . . . . . . . . . . . . . . . 6 . . Parts Lost 47 | . . 1 . 2 . 2 . . . . 7 4 . 4 4 . . . 23 Power 2 | . . . . . . . . . . . . . . . 1 . . . 1 Propulsion 30 | . . 1 . 2 . 2 . . . . 4 2 . 4 3 . . . 12 Utility 9 | . . . . . . . . . . . 1 1 . . . . . . 7 Weapon 6 | . . . . . . . . . . . 2 1 . . . . . . 3 Highest Loss Streak 21 | . . 1 . 1 . 2 . . . . 5 3 . 4 3 . . . 21 To Critical Strikes 1 | . . . . . . . . . . . . . . . 1 . . . . Average Backups 4 | 1 3 4 5 4 4 4 5 5 5 5 4 4 4 5 4 5 5 5 3 Power . | . . . . . . . . . . . . . . . . . . . . Propulsion . | . . . 1 1 1 . . . . . . . . . . . . . . Utility 3 | . 1 1 2 2 3 3 4 5 5 5 4 2 2 3 3 3 3 3 1 Weapon . | . 2 2 2 1 . . . . . . . . 1 . . 1 1 1 1 Tool/Special . | . . . . . . . . . . . . . . . . . . . . Unused Backups 17 | . . 1 . 1 . 1 . . . . 1 2 2 1 6 . . . 2 Power 1 | . . . . . . . . . . . . . 1 . . . . . . Propulsion . | . . . . . . . . . . . . . . . . . . . . Utility 10 | . . . . . . 1 . . . . 1 1 1 . 5 . . . 1 Weapon 5 | . . 1 . 1 . . . . . . . 1 . 1 1 . . . . Tool/Special 1 | . . . . . . . . . . . . . . . . . . . 1 Average Slot Usage (%) 68 | . 28 41 75 72 58 53 39 53 54 61 37 38 76 82 89 94 89 89 61 Engine 1 | . . . . . . . . . . . . 2 11 8 5 5 . . . Reactor 1 | . . . . . . . . . . . . . . . . . 4 5 2 Treads 7 | . 28 35 33 31 22 21 14 7 7 7 4 . . . . . . . . Wheel 2 | . . . . . . . 2 23 23 23 13 . . . . . . . . Hover 21 | . . . . . . . . . . . . 4 24 29 36 42 42 42 27 Flight 1 | . . . 8 5 2 3 . . . . . 7 2 . 1 . . . . Device 8 | . . . . . . 7 7 7 7 7 6 3 2 5 8 15 15 15 11 Processor 7 | . . . 22 22 22 10 7 7 7 7 7 12 11 5 5 5 5 5 5 Hackware 6 | . . . . . . . . . . . . 4 11 16 15 10 10 10 7 Impact Weapon 5 | . . 5 11 11 11 9 7 7 7 7 2 . 4 11 8 5 4 5 2 Piercing Weapon 1 | . . . . . . . . . . . . . . . 1 5 4 5 2 Peak Build Rating 156 | 2 2 17 17 17 16 21 38 38 41 41 41 42 65 80 116 115 139 138 156 Average Rating 72 | 1 2 7 16 16 15 17 18 38 38 41 25 22 53 63 95 113 129 138 100 On Entrance 46 | . 2 2 16 17 15 16 16 38 38 41 41 5 42 65 80 114 114 138 138 Naked Turns 4 | . . . . . . . . . . . . . . . . . . . 4 Heaviest Build 57 | . . 3 3 6 3 3 3 3 9 9 3 6 14 23 37 37 47 45 57 Greatest Support 110 | 3 3 20 3 3 3 3 3 3 28 28 3 8 74 74 98 98 110 109 109 Greatest Overweight (x) 1 | . . . . 1 . . . . . . . . . . 1 . . . 1 Average Overweight (x) . | . . . . . . . . . . . . . . . . . . . . Largest Inventory Capacity 5 | 5 5 5 5 5 5 5 5 5 5 5 5 5 5 5 5 5 5 5 5 Average Capacity 5 | 5 5 5 5 5 5 5 5 5 5 5 5 5 5 5 5 5 5 5 5 Most Carried 5 | 3 4 5 5 5 5 5 5 5 5 5 5 5 5 5 5 5 5 5 5 Average Carried 4 | 1 3 4 4 4 4 4 5 5 4 5 4 4 4 4 4 5 4 5 3 Final Capacity 5 | 5 5 5 5 5 5 5 5 5 5 5 5 5 5 5 5 5 5 5 5 Final Carried 5 | 3 4 5 5 5 5 5 5 5 5 5 4 5 5 5 5 5 5 5 3 Class Distribution -------------------- 44% | Mutant 40% | Hacker-Mutant 11% | Hacker-Sprinter 3% | Hacker-Gladiator Dominant Class ---------------- Mutant | -10/Materials Mutant | -9/Materials Mutant | -9/Mines Mutant | -9/Exiles Mutant | -8/Mines Mutant | -8/Materials Mutant | -7/Factory Mutant | -7/Lower Caves Mutant | -7/Lower Caves Mutant | -7/Data Miner Mutant | -6/Proximity Caves Mutant | -6/Factory Hacker-Mutant | -5/Factory Hacker-Mutant | -5/DSF Hacker-Sprinter | -4/Factory Hacker-Mutant | -4/Upper Caves Hacker-Mutant | -4/Warlord Hacker-Mutant | -3/Proximity Caves Hacker-Gladiator | -3/Research Resources | -11 -10 -9 -9 -9 -8 -8 -7 -7 -7 -7 -6 -6 -5 -5 -4 -4 -4 -3 -3 ----------- Run | Yrd Mat Mat Min Exi Min Mat Fac Low Low Dat Pro Fac Fac DSF Fac Upp War Pro Res Matter Collected 1647 | 212 8 43 9 68 41 121 . 129 41 . 114 67 . 33 417 40 220 . 84 Remotely . | . . . . . . . . . . . . . . . . . . . . Salvage Created 1654 | . . 67 28 28 51 124 . 93 . . 62 86 . . 500 95 45 . 475 Parts 65 | . . 7 5 . 3 5 . . . . 4 4 . . 17 6 . . 14 Haulers Intercepted 2 | . . 1 . . . . . . . . . . . . . . . . 1 Recyclers Shooed . | . . . . . . . . . . . . . . . . . . . . Parts Field Recycled . | . . . . . . . . . . . . . . . . . . . . Retrieved Matter . | . . . . . . . . . . . . . . . . . . . . Parts Self-Destructed 12 | . . . . . . . . 6 . . 4 . . . . 2 . . . Prevented . | . . . . . . . . . . . . . . . . . . . . Kills | -11 -10 -9 -9 -9 -8 -8 -7 -7 -7 -7 -6 -6 -5 -5 -4 -4 -4 -3 -3 ------- Run | Yrd Mat Mat Min Exi Min Mat Fac Low Low Dat Pro Fac Fac DSF Fac Upp War Pro Res Combat Hostiles Destroyed 44 | . . 4 3 7 3 4 . 1 . . 5 5 . . 6 1 1 . 4 Melee 9 | . . . . . . 1 . . . . . . . . 4 1 1 . 2 Cannons 3 | . . . . . . . . . . . . 3 . . . . . . . AOE 28 | . . 4 3 7 3 3 . . . . 5 2 . . . . . . 1 Classes Destroyed 13 | . . 2 . 1 1 2 . 1 . . . . . . 3 1 1 . 1 Worker 2 | . . . . . 2 . . . . . . . . . . . . . . Hauler 2 | . . 1 . . . . . . . . . . . . . . . . 1 Recycler 3 | . . . . . . 1 . . . . . . . . 1 . . . 1 Operator 1 | . . . . . . . . . . . . . . . 1 . . . . Watcher 2 | . . . . . . . . . . . . . . . 1 . . . 1 Swarmer 27 | . . 4 3 . 3 3 . 1 . . 5 5 . . 3 . . . . Grunt 2 | . . . . . . 1 . . . . . . . . . . . . 1 Sentry 3 | . . . . . . . . . . . . . . . 3 . . . . Hunter 2 | . . . . . . . . . . . . . . . . . 1 . 1 Tracker 1 | . . . . . . . . . . . . . . . . . . . 1 Combat Programmer 1 | . . . . . . . . . . . . . . . . . . . 1 Samaritan 2 | . . . . . . . . 2 . . . . . . . . . . . Assembled 7 | . . . . 7 . . . . . . . . . . . . . . . Mutant 1 | . . . . . . . . . . . . . . . . 1 . . . Best Kill Streak 7 | . . 5 3 7 5 3 . 1 . . 4 3 . . 3 1 1 . 3 Combat Bots Only 7 | . . 4 3 7 3 3 . 1 . . 4 3 . . 3 1 1 . 1 Max Kills in Single Turn 3 | . . 3 3 2 2 1 . 1 . . 3 2 . . 1 1 1 . 2 Gunslinging . | . . . . . . . . . . . . . . . . . . . . Exploded 3 | . . 3 3 2 2 1 . . . . 3 2 . . . . . . 1 Melee 1 | . . . . . . 1 . . . . . . . . 1 1 1 . 1 Uniques/NPCs Destroyed . | . . . . . . . . . . . . . . . . . . . . Combat | -11 -10 -9 -9 -9 -8 -8 -7 -7 -7 -7 -6 -6 -5 -5 -4 -4 -4 -3 -3 -------- Run | Yrd Mat Mat Min Exi Min Mat Fac Low Low Dat Pro Fac Fac DSF Fac Upp War Pro Res Hostile Shots Fired 726 | . 22 45 6 31 9 26 41 13 . 11 109 66 . 11 68 22 20 1 225 Missed 295 | . 9 17 4 12 3 8 17 2 . 3 52 32 . 5 28 9 12 1 81 Hits 431 | . 13 28 2 19 6 18 24 11 . 8 57 34 . 6 40 13 8 . 144 Melee 1 | . . . . . . . . . . . 1 . . . . . . . . Projectile 430 | . 13 28 2 19 6 18 24 11 . 8 56 34 . 6 40 13 8 . 144 AOE 2 | . . . . . . . . . . . . . . 2 . . . . . Critical Strikes 18 | . . 1 . 1 . . 1 . . . . 1 . 1 2 . . . 11 Damage Taken 8416 | . 149 318 33 379 58 255 242 161 . 371 966 691 . 518 751 125 217 . 3182 Core 2776 | . 44 29 7 28 6 29 72 46 . 96 315 465 . 133 139 24 34 . 1309 Absorbed by Shields 47 | . . . . . . . . . . . . . . . . . . . 47 Regen/Repaired (Parts) 53 | . . . . . . . . . . . . . . . . . 53 . . Core Remaining (%) 74 | 100 82 . . . 82 94 . . . . 24 45 . 86 . . . 82 . Volleys Fired 43 | . . 3 1 9 6 3 . . . . 7 11 . . . . . . 3 Largest 2 | . . 1 1 1 1 1 . . . . 1 2 . . . . . . 1 Hottest 98 | . . 30 30 30 30 30 . . . . 36 98 . . . . . . 49 Shots Fired 44 | . . 3 1 9 6 3 . . . . 7 12 . . . . . . 3 Gun 2 | . . . . . . . . . . . . 2 . . . . . . . Cannon 10 | . . . . . . . . . . . . 10 . . . . . . . Launcher 32 | . . 3 1 9 6 3 . . . . 7 . . . . . . . 3 Special . | . . . . . . . . . . . . . . . . . . . . Kinetic 7 | . . . . . . . . . . . . 7 . . . . . . . Thermal 5 | . . . . . . . . . . . . 5 . . . . . . . Explosive 32 | . . 3 1 9 6 3 . . . . 7 . . . . . . . 3 Electromagnetic . | . . . . . . . . . . . . . . . . . . . . Robot Hit Streak 5 | . . 2 1 4 2 5 . . . . 1 4 . . . . . . 3 Robot Miss Streak 2 | . . 1 . . 1 . . . . . 2 1 . . . . . . 1 Penetration Max . | . . . . . . . . . . . . . . . . . . . . Secondary Targets . | . . . . . . . . . . . . . . . . . . . . Shots Hit Robots 78 | . . 4 1 5 4 7 . 5 . . 1 7 . . 15 5 2 . 22 Core Hits 68 | . . 6 3 12 3 4 . . . . 6 12 . . 5 3 1 . 13 Critical Kills 1 | . . . . . . . . . . . . . . . 1 . . . . Critical Parts Destroyed 3 | . . . . . . . . . . . . . . . 2 . . . 1 Critical Strikes 8 | . . . . . . . . . . . . . . . 4 . 1 . 3 Smash 4 | . . . . . . . . . . . . . . . 3 . . . 1 Impale 4 | . . . . . . . . . . . . . . . 1 . 1 . 2 Melee Attacks 129 | . . 2 . 2 2 9 9 8 . . . . 1 . 49 12 3 . 32 Impact 70 | . . 2 . 2 2 9 9 8 . . . . 1 . 34 . 1 . 2 Slashing . | . . . . . . . . . . . . . . . . . . . . Piercing 59 | . . . . . . . . . . . . . . . 15 12 2 . 30 Sneak Attacks 11 | . . . . 2 2 1 . 2 . . . . . . 1 . . . 3 Combat Hostiles . | . . . . . . . . . . . . . . . . . . . . Follow-up Attacks 5 | . . . . . . . . . . . . . . . 2 . 1 . 2 Damage Inflicted 6245 | . . 362 113 510 380 392 2 422 . 6 434 683 . . 834 197 104 . 1806 Guns 9 | . . . . . . . . . . . . 9 . . . . . . . Cannons 205 | . . . . . . . . . . . . 205 . . . . . . . Explosions 2410 | . . 237 113 381 173 116 . . . . 434 461 . . . . . . 495 Melee 3524 | . . 118 . 129 207 276 . 422 . . . . . . 784 197 104 . 1287 Ramming 97 | . . 7 . . . . 2 . . 6 . 8 . . 50 . . . 24 Kinetic 94 | . . . . . . . . . . . . 94 . . . . . . . Thermal 495 | . . . . . . . . . . . . 495 . . . . . . . Explosive 1949 | . . 237 113 381 173 116 . . . . 434 . . . . . . . 495 Electromagnetic 86 | . . . . . . . . . . . . 86 . . . . . . . Impact 1874 | . . 118 . 129 207 276 . 422 . . . . . . 557 . 59 . 106 Slashing . | . . . . . . . . . . . . . . . . . . . . Piercing 1650 | . . . . . . . . . . . . . . . 227 197 45 . 1181 Highest Corruption 16 | . . . . 1 1 2 . . . . . 2 . . 2 2 2 . 16 Average Corruption 2 | . . . . 1 1 2 . . . . . 2 . . 2 2 2 . 8 Corruption Purged . | . . . . . . . . . . . . . . . . . . . . Corruption Blocked . | . . . . . . . . . . . . . . . . . . . . Effects 16 | . . . . . 2 1 . . . . . 1 . . 3 2 . . 7 Message Errors 3 | . . . . . . 1 . . . . . . . . . 2 . . . Matter Fused 3 | . . . . . . . . . . . . 1 . . 1 . . . 1 Heat Flow Errors 1 | . . . . . . . . . . . . . . . . . . . 1 Energy Discharges 6 | . . . . . 1 . . . . . . . . . 2 . . . 3 Data Loss (minor) 2 | . . . . . 1 . . . . . . . . . . . . . 1 Misdirections 1 | . . . . . . . . . . . . . . . . . . . 1 Overload Shots . | . . . . . . . . . . . . . . . . . . . . Overflow Damage 1175 | . . 1 . 127 181 33 . 307 . . 19 104 . . 234 . . . 169 Projectiles 21 | . . . . . . . . . . . . 21 . . . . . . . Explosions 117 | . . 1 . . 14 . . . . . 19 83 . . . . . . . Melee 1037 | . . . . 127 167 33 . 307 . . . . . . 234 . . . 169 Knockbacks 4 | . . . . 2 . . . . . . . 1 . . 1 . . . . Impact 3 | . . . . 2 . . . . . . . . . . 1 . . . . Kinetic 1 | . . . . . . . . . . . . 1 . . . . . . . Secondary . | . . . . . . . . . . . . . . . . . . . . Self-Inflicted Damage 466 | . . 53 22 . 13 . . . . . 151 191 . . 25 . . . 11 Shots 12 | . . 2 1 . 1 . . . . . 5 3 . . . . . . . Rammed 13 | . . 5 . . . . 1 . . 1 . 2 . . 1 . . . 3 Targets Rammed 13 | . . 5 . . . . 1 . . 1 . 2 . . 1 . . . 3 Kicked . | . . . . . . . . . . . . . . . . . . . . Crushed . | . . . . . . . . . . . . . . . . . . . . Highest Temperature 303 | . . . . . 2 . . . . . . 82 . 35 303 . 36 . 117 Average Temperature 78 | . . . . . 2 . . . . . . 43 . 19 95 . 19 . 77 Received Heat Transfer 732 | . 84 33 . . . 81 123 . . . 81 36 . . 72 49 9 . 164 Siege Activations . | . . . . . . . . . . . . . . . . . . . . Martial Activations . | . . . . . . . . . . . . . . . . . . . . Shielding Activations . | . . . . . . . . . . . . . . . . . . . . Robots Disrupted . | . . . . . . . . . . . . . . . . . . . . Combat Hostiles . | . . . . . . . . . . . . . . . . . . . . Robots Corrupted 10 | . . . . . 2 1 . 2 . . . . . . 4 . . . 1 Combat Hostiles 4 | . . . . . . . . 1 . . . . . . 2 . . . 1 Parts Fried 18 | . . . . . 1 1 . 6 . . . . . . 7 . . . 3 Impact Corruptions 37 | . . . . 10 6 2 . 11 . . . . . . 7 . . . 1 Robots Melted . | . . . . . . . . . . . . . . . . . . . . Combat Hostiles . | . . . . . . . . . . . . . . . . . . . . Parts Melted . | . . . . . . . . . . . . . . . . . . . . Heat Transferred 387 | . . . . . . . . . . . . 387 . . . . . . . Parts Sabotaged 1 | . . . . . . . . . . . 1 . . . . . . . . Parts Stolen . | . . . . . . . . . . . . . . . . . . . . Parts Stripped . | . . . . . . . . . . . . . . . . . . . . Power Chain Reactions . | . . . . . . . . . . . . . . . . . . . . Alert | -11 -10 -9 -9 -9 -8 -8 -7 -7 -7 -7 -6 -6 -5 -5 -4 -4 -4 -3 -3 ------- Run | Yrd Mat Mat Min Exi Min Mat Fac Low Low Dat Pro Fac Fac DSF Fac Upp War Pro Res Maximum Alert Level 1 | . . 1 . . . . . . . . . 1 . . 1 . . . . Low Security (%) 81 | 100 100 96 100 . 100 100 100 . . . . 59 100 100 47 . . . 100 Level 1 18 | . . 3 . . . . . . . . . 40 . . 52 . . . . Level 2 . | . . . . . . . . . . . . . . . . . . . . Level 3 . | . . . . . . . . . . . . . . . . . . . . Level 4 . | . . . . . . . . . . . . . . . . . . . . Level 5 . | . . . . . . . . . . . . . . . . . . . . High Security . | . . . . . . . . . . . . . . . . . . . . Max Security . | . . . . . . . . . . . . . . . . . . . . Peak Influence 355 | . 50 203 142 . 136 161 98 . . . . 259 121 72 355 . . . 105 Initial 121 | . . 8 63 . . 44 68 . . . . 94 121 72 24 . . . 13 Average 114 | . 30 120 126 . 37 117 71 . . . . 180 111 55 188 . . . 30 Influence Increases 2752 | . 50 275 79 . 146 177 76 80 . . 280 365 2 15 584 . 185 60 378 Destroy 0b10 Robot/C 720 | . . 80 60 . 60 80 . 20 . . 100 100 . . 120 . 20 . 80 Destroy 0b10 Robot/NC 50 | . . 5 . . 10 5 . . . . . . . . 15 . . . 15 Destroy Leader 108 | . . 12 10 . 10 10 . . . . . 10 . . 32 . . . 24 Successful Hack 77 | . 20 12 . . . 4 . . . . . 14 . . 27 . . . . Select Force Hacks 60 | . 30 . . . . 30 . . . . . . . . . . . . . Disable Machine 165 | . . 15 . . . 15 30 . . . . 75 . . 30 . . . . Destroy Structure 222 | . . 16 9 . 36 18 1 . . . . 16 2 . 30 . . . 94 Partial Spotted 75 | . . 30 . . . . . . . . . 15 . . 30 . . . . Lose Combat Pursuer 1275 | . . 105 . . 30 15 45 60 . . 180 135 . 15 300 . 165 60 165 Influence Decreases 2667 | . 30 132 130 112 30 142 163 85 59 . 130 266 148 71 284 190 235 147 313 Entered New Map 1055 | . . 12 100 112 . 72 83 25 12 . . 56 128 31 23 130 157 107 7 Time Decay 1212 | . 30 110 30 . 30 50 80 60 47 . 70 150 20 . 221 60 78 30 146 Lost Part 370 | . . 10 . . . 20 . . . . 60 40 . 40 40 . . . 160 Lost Ally 30 | . . . . . . . . . . . . 20 . . . . . 10 . Squads Dispatched 23 | . 3 2 . . . 1 2 . . . 1 3 . 1 3 . . . 7 Investigation 11 | . 2 2 . . . 1 1 . . . . 3 . . 2 . . . . Extermination 2 | . . . . . . . . . . . . . . . 1 . . . 1 Reinforcement 7 | . 1 . . . . . 1 . . . . . . 1 . . . . 4 Assault 1 | . . . . . . . . . . . 1 . . . . . . . . Garrison . | . . . . . . . . . . . . . . . . . . . . Intercept 2 | . . . . . . . . . . . . . . . . . . . 2 Searches Triggered . | . . . . . . . . . . . . . . . . . . . . Construction Impeded . | . . . . . . . . . . . . . . . . . . . . Haulers Reinforced 1 | . . . . . . . . . . . . . . . . . . . 1 Active Scanning Responses . | . . . . . . . . . . . . . . . . . . . . Cargo Convoy Interrupts . | . . . . . . . . . . . . . . . . . . . . Stealth | -11 -10 -9 -9 -9 -8 -8 -7 -7 -7 -7 -6 -6 -5 -5 -4 -4 -4 -3 -3 --------- Run | Yrd Mat Mat Min Exi Min Mat Fac Low Low Dat Pro Fac Fac DSF Fac Upp War Pro Res Distress Signals 10 | . . 1 . . . 3 . . . . . 2 . . 1 . 1 . 2 Communications Jammed . | . . . . . . . . . . . . . . . . . . . . Distress Signals . | . . . . . . . . . . . . . . . . . . . . Times Spotted 194 | . 7 15 3 9 4 11 16 2 . 4 22 18 . 4 27 7 20 2 23 Peak Tracking Total 14 | . 6 8 3 11 3 8 11 4 . 4 9 8 . 4 13 8 14 4 13 Tactical Retreats 36 | . . 3 . 1 1 1 1 2 . . 5 5 . 1 6 . 3 1 6 Traps | -11 -10 -9 -9 -9 -8 -8 -7 -7 -7 -7 -6 -6 -5 -5 -4 -4 -4 -3 -3 ------- Run | Yrd Mat Mat Min Exi Min Mat Fac Low Low Dat Pro Fac Fac DSF Fac Upp War Pro Res Traps Triggered 7 | . . 1 . . . 1 . . . . . . . 1 3 . . . 1 Indirectly . | . . . . . . . . . . . . . . . . . . . . Trap Hack Attempts . | . . . . . . . . . . . . . . . . . . . . Triggered . | . . . . . . . . . . . . . . . . . . . . Disarmed . | . . . . . . . . . . . . . . . . . . . . Reprogrammed . | . . . . . . . . . . . . . . . . . . . . Reused . | . . . . . . . . . . . . . . . . . . . . Traps Extracted . | . . . . . . . . . . . . . . . . . . . . Installed . | . . . . . . . . . . . . . . . . . . . . Triggered . | . . . . . . . . . . . . . . . . . . . . Machines | -11 -10 -9 -9 -9 -8 -8 -7 -7 -7 -7 -6 -6 -5 -5 -4 -4 -4 -3 -3 ---------- Run | Yrd Mat Mat Min Exi Min Mat Fac Low Low Dat Pro Fac Fac DSF Fac Upp War Pro Res Machines Disabled 14 | . . 1 . 3 . 1 2 . . . . 5 . . 2 . . . . Max in Single Turn 3 | . . 1 . 2 . 1 1 . . . . 3 . . 1 . . . . Machines Repaired . | . . . . . . . . . . . . . . . . . . . . Machines Dismantled . | . . . . . . . . . . . . . . . . . . . . Machines Sabotaged . | . . . . . . . . . . . . . . . . . . . . Overloaded Fab Kills . | . . . . . . . . . . . . . . . . . . . . Hacking | -11 -10 -9 -9 -9 -8 -8 -7 -7 -7 -7 -6 -6 -5 -5 -4 -4 -4 -3 -3 --------- Run | Yrd Mat Mat Min Exi Min Mat Fac Low Low Dat Pro Fac Fac DSF Fac Upp War Pro Res Machines Accessed 41 | . 4 2 . 1 . 2 2 . 1 4 . 8 2 . 8 . 7 . . Terminals 15 | . 3 1 . . . 1 1 . . . . 3 1 . 5 . . . . Fabricators . | . . . . . . . . . . . . . . . . . . . . Repair Stations 4 | . . 1 . . . . 1 . . . . 1 1 . . . . . . Recycling Units 7 | . 1 . . . . 1 . . . . . 3 . . 2 . . . . Scanalyzers 1 | . . . . . . . . . . . . . . . 1 . . . . Garrison Access 1 | . . . . . . . . . . . . 1 . . . . . . . Total Hacks 135 | . 14 9 . 1 . 3 6 . 1 27 . 16 2 . 43 . 13 . . Successful 90 | . 6 4 . 1 . 2 . . 1 27 . 6 2 . 28 . 13 . . Failed 45 | . 8 5 . . . 1 6 . . . . 10 . . 15 . . . . Catastrophic 11 | . 1 2 . . . 1 3 . . . . 2 . . 2 . . . . Database Lockouts . | . . . . . . . . . . . . . . . . . . . . Manual 56 | . 15 7 . . . 2 3 . . . . 5 . . 23 . 1 . . Terminals 55 | . 13 7 . . . 2 3 . . . . 8 1 . 21 . . . . Fabricators . | . . . . . . . . . . . . . . . . . . . . Repair Stations 7 | . . 2 . . . . 3 . . . . 1 1 . . . . . . Recycling Units 14 | . 1 . . . . 1 . . . . . 5 . . 7 . . . . Scanalyzers 15 | . . . . . . . . . . . . . . . 15 . . . . Garrison Access 2 | . . . . . . . . . . . . 2 . . . . . . . Terminal Hacks 54 | . 3 3 . 1 . 1 . . 1 27 . 2 1 . 2 . 13 . . Record 23 | . . . . 1 . . . . . 11 . . . . . . 11 . . Part Schematic 8 | . . . . . . . . . . 8 . . . . . . . . . Robot Schematic 5 | . . . . . . . . . . 5 . . . . . . . . . Robot Analysis 7 | . 3 3 . . . 1 . . . . . . . . . . . . . Prototype ID Bank 3 | . . . . . . . . . . 3 . . . . . . . . . Open Door 3 | . . . . . . . . . 1 . . . . . . . 2 . . Open DSF 1 | . . . . . . . . . . . . . 1 . . . . . . Branch Access Points 1 | . . . . . . . . . . . . . . . 1 . . . . Emergency Access Points 1 | . . . . . . . . . . . . . . . 1 . . . . Locate Traps 1 | . . . . . . . . . . . . 1 . . . . . . . Zone Layout 1 | . . . . . . . . . . . . 1 . . . . . . . Fabricator Hacks . | . . . . . . . . . . . . . . . . . . . . Repair Station Hacks 2 | . . . . . . . . . . . . 1 1 . . . . . . Refit 2 | . . . . . . . . . . . . 1 1 . . . . . . Recycling Unit Hacks 4 | . . . . . . . . . . . . 2 . . 2 . . . . Retrieve Components 4 | . . . . . . . . . . . . 2 . . 2 . . . . Scanalyzer 14 | . . . . . . . . . . . . . . . 14 . . . . Insert Component 5 | . . . . . . . . . . . . . . . 5 . . . . Analyze 9 | . . . . . . . . . . . . . . . 9 . . . . Garrison Access Hacks . | . . . . . . . . . . . . . . . . . . . . Unauthorized Hacks 16 | . 3 1 . . . 1 . . . . . 1 . . 10 . . . . Terminals 11 | . 2 1 . . . . . . . . . 1 . . 7 . . . . Track 2 | . . . . . . . . . . . . 1 . . 1 . . . . Assimilate 1 | . . . . . . . . . . . . . . . 1 . . . . Botnet 5 | . 2 1 . . . . . . . . . . . . 2 . . . . Disrupt 2 | . . . . . . . . . . . . . . . 2 . . . . Operators 1 | . . . . . . . . . . . . . . . 1 . . . . Fabricators . | . . . . . . . . . . . . . . . . . . . . Repair Stations . | . . . . . . . . . . . . . . . . . . . . Recycling Units 5 | . 1 . . . . 1 . . . . . . . . 3 . . . . Monitor 1 | . . . . . . . . . . . . . . . 1 . . . . Recyclers 1 | . . . . . . . . . . . . . . . 1 . . . . Mask 1 | . . . . . . . . . . . . . . . 1 . . . . Tunnel 2 | . 1 . . . . 1 . . . . . . . . . . . . . Scanalyzers . | . . . . . . . . . . . . . . . . . . . . Garrison Access . | . . . . . . . . . . . . . . . . . . . . Data Cores Recovered . | . . . . . . . . . . . . . . . . . . . . Used . | . . . . . . . . . . . . . . . . . . . . Hacking Detections 20 | . 3 2 . . . 1 2 . . . . 7 1 . 4 . . . . Full Trace Events 10 | . 3 2 . . . . 1 . . . . 3 . . 1 . . . . Feedback Events . | . . . . . . . . . . . . . . . . . . . . Feedback Blocked . | . . . . . . . . . . . . . . . . . . . . Robot Schematics Acquired 5 | . . . . . . . . . . 5 . . . . . . . . . Robots Built . | . . . . . . . . . . . . . . . . . . . . Authchips . | . . . . . . . . . . . . . . . . . . . . Time . | . . . . . . . . . . . . . . . . . . . . Total Robot Build Rating . | . . . . . . . . . . . . . . . . . . . . Part Schematics Acquired 13 | . . . . . . . . . . 8 . . . . 5 . . . . Parts Built . | . . . . . . . . . . . . . . . . . . . . Authchips . | . . . . . . . . . . . . . . . . . . . . Time . | . . . . . . . . . . . . . . . . . . . . Total Part Build Rating . | . . . . . . . . . . . . . . . . . . . . Parts Repaired . | . . . . . . . . . . . . . . . . . . . . Time . | . . . . . . . . . . . . . . . . . . . . Parts Recycled . | . . . . . . . . . . . . . . . . . . . . Recycled Matter . | . . . . . . . . . . . . . . . . . . . . Retrieved Matter . | . . . . . . . . . . . . . . . . . . . . Retrieved Components 7 | . . . . . . . . . . . . 6 . . 1 . . . . Parts Scanalyzed 5 | . . . . . . . . . . . . . . . 5 . . . . Part Schematics Acquired 5 | . . . . . . . . . . . . . . . 5 . . . . Parts Damaged 1 | . . . . . . . . . . . . . . . 1 . . . . Bothacking | -11 -10 -9 -9 -9 -8 -8 -7 -7 -7 -7 -6 -6 -5 -5 -4 -4 -4 -3 -3 ------------ Run | Yrd Mat Mat Min Exi Min Mat Fac Low Low Dat Pro Fac Fac DSF Fac Upp War Pro Res Used RIF Installer . | . . . . . . . . . . . . . . . . . . . . Robots Hacked . | . . . . . . . . . . . . . . . . . . . . Non-combat . | . . . . . . . . . . . . . . . . . . . . Combat . | . . . . . . . . . . . . . . . . . . . . Robot Hacks Applied . | . . . . . . . . . . . . . . . . . . . . Relay Couplers Released . | . . . . . . . . . . . . . . . . . . . . Fabnet Peak Effective % . | . . . . . . . . . . . . . . . . . . . . Robots Rewired 7 | . . . . . . . . . . . . . . . . 3 4 . . Allies Hacked . | . . . . . . . . . . . . . . . . . . . . Hacks Repelled . | . . . . . . . . . . . . . . . . . . . . Allies | -11 -10 -9 -9 -9 -8 -8 -7 -7 -7 -7 -6 -6 -5 -5 -4 -4 -4 -3 -3 -------- Run | Yrd Mat Mat Min Exi Min Mat Fac Low Low Dat Pro Fac Fac DSF Fac Upp War Pro Res Total Allies 7 | . . . . . . . . . . . . . . . . 3 4 . . Largest Group 3 | . . . . . . . . . . . . . . . . 3 3 1 . Highest-Rated Group 154 | . . . . . . . . . . . . . . . . 144 154 59 . Highest-Rated Ally 64 | . . . . . . . . . . . . . . . . 48 64 59 . Total Orders 2 | . . . . . . . . . . . . 2 . . . . . . . STAY 1 | . . . . . . . . . . . . 1 . . . . . . . EXPLORE 1 | . . . . . . . . . . . . 1 . . . . . . . Ally Attacks 6 | . . . . . . . . . . . . . . . . . 6 . . Total Damage 248 | . . . . . . . . . . . . . . . . . 248 . . Kills . | . . . . . . . . . . . . . . . . . . . . Allies Corrupted . | . . . . . . . . . . . . . . . . . . . . Allies Melted . | . . . . . . . . . . . . . . . . . . . . Intel | -11 -10 -9 -9 -9 -8 -8 -7 -7 -7 -7 -6 -6 -5 -5 -4 -4 -4 -3 -3 ------- Run | Yrd Mat Mat Min Exi Min Mat Fac Low Low Dat Pro Fac Fac DSF Fac Upp War Pro Res Active Infowar (turns) 1633 | . . . . . . . . . . . . 103 55 6 . 134 1044 94 197 Optics 78 | . . . . . . . . . . . . 17 55 6 . . . . . Sensors 1555 | . . . . . . . . . . . . 86 . . . 134 1044 94 197 Robot Analysis Total 158 | . 3 3 . . . 1 . . . 151 . . . . . . . . . Derelict Logs Recovered 2 | . . . . . . . . . . . 2 . . . . . . . . Drone Launches 2 | . . . . . . . . . . . . 2 . . . . . . . Drone Recoveries . | . . . . . . . . . . . . . . . . . . . . Exploration | -11 -10 -9 -9 -9 -8 -8 -7 -7 -7 -7 -6 -6 -5 -5 -4 -4 -4 -3 -3 ------------- Run | Yrd Mat Mat Min Exi Min Mat Fac Low Low Dat Pro Fac Fac DSF Fac Upp War Pro Res Turns Passed 4085 | 26 60 220 63 155 134 117 167 127 154 97 186 309 55 72 504 137 1048 94 360 Spaces Moved 6603 | 40 117 360 115 246 195 160 270 213 275 108 330 668 59 106 826 205 1532 261 517 Core 2592 | 40 117 353 115 246 195 160 270 213 250 29 330 83 . . . . . . 191 Treads 7 | . . 7 . . . . . . . . . . . . . . . . . Legs . | . . . . . . . . . . . . . . . . . . . . Wheels 104 | . . . . . . . . . 25 79 . . . . . . . . . Hover 3290 | . . . . . . . . . . . . . 34 106 826 205 1532 261 326 Flight 610 | . . . . . . . . . . . . 585 25 . . . . . . Fastest Speed 23 | 50 50 50 50 50 50 50 50 50 50 50 50 32 35 24 23 33 31 36 36 Average Speed 42 | 50 50 52 50 50 50 50 50 50 54 86 50 36 45 49 29 39 37 36 42 Slowest Speed 160 | 50 50 160 50 100 50 50 50 50 100 100 50 50 76 66 108 40 46 36 101 Overloaded Moves 16 | . . . . . . . . . . . . . . . . . 16 . . Propulsion Burnouts . | . . . . . . . . . . . . . . . . . . . . Robots Hopped 10 | . . . . . . . . . . . . 10 . . . . . . . Potential Cave-ins . | . . . . . . . . . . . . . . . . . . . . Cave-ins Triggered . | . . . . . . . . . . . . . . . . . . . . Exploration Rate (%) 39 | 3 31 38 39 58 48 22 11 47 46 77 54 21 1 92 18 24 96 51 22 Regions Visited 19 Branch Regions 10 Pre-discovered Areas 32 | . 1 . . 1 . 1 . . . 28 . . . . . . 1 . . Known Exits Taken 6 | . . . . . . . . . . . . 1 1 . 1 1 1 1 . Unknown Exits Taken 12 | 1 1 1 1 1 1 1 1 1 1 1 1 . . . . . . . . Scrap Searched 7 | . . . . . . . . 2 1 . . . . . . . . 4 . Spaces Dug 56 | . . . . . 9 . 1 . . . 18 . 1 . 14 6 . . 7 Terrain Destroyed 263 | . . 14 9 13 37 20 1 . . . 63 19 1 . 14 6 . . 66 Melee 29 | . . . . . . . 1 . . . . . 1 . 14 6 . . 7 Projectile 1 | . . . . . . . . . . . . 1 . . . . . . . AOE 233 | . . 14 9 13 37 20 . . . . 63 18 . . . . . . 59 Terrain Rammed . | . . . . . . . . . . . . . . . . . . . . Walls Destroyed . | . . . . . . . . . . . . . . . . . . . . Machines Disabled . | . . . . . . . . . . . . . . . . . . . . Actions | -11 -10 -9 -9 -9 -8 -8 -7 -7 -7 -7 -6 -6 -5 -5 -4 -4 -4 -3 -3 --------- Run | Yrd Mat Mat Min Exi Min Mat Fac Low Low Dat Pro Fac Fac DSF Fac Upp War Pro Res Total 7605 | 44 117 382 118 265 221 181 287 220 279 110 344 709 85 124 1010 243 2000 260 606 Wait 550 | . . . . 3 16 . . . . 2 . 12 4 3 67 13 392 . 38 Move 6565 | 39 116 359 114 245 194 159 270 212 274 107 329 647 58 105 825 204 1531 260 517 Hop 10 | . . . . . . . . . . . . 10 . . . . . . . Pick Up 32 | 3 1 3 . 1 . 2 1 . 1 . . 5 2 1 9 . 2 . 1 Fast Attach 74 | 2 . 4 1 . 1 1 4 . 2 . 1 13 8 7 13 1 11 . 5 Attach 23 | . . 2 1 2 1 3 . . . . 3 2 1 . 3 . . . 5 Detach 17 | . . 1 1 2 1 2 . . . . 3 . 1 . 3 1 . . 2 Swap 21 | . . 1 . . . . . . . . . . 1 2 3 2 11 . 1 Drop 73 | . . 2 . 1 . 2 3 . 2 . 1 7 9 5 17 2 21 . 1 Fire 43 | . . 3 1 9 6 3 . . . . 7 11 . . . . . . 3 Melee 120 | . . 2 . 2 2 9 9 8 . . . . 1 . 43 12 2 . 30 Ram 6 | . . . . . . . . . . . . 2 . . 1 . . . 3 Kick . | . . . . . . . . . . . . . . . . . . . . Crush 6 | . . 5 . . . . . . . 1 . . . . . . . . . Escape Stasis 27 | . . . . . . . . . . . . . . 1 26 . . . . Rewire 38 | . . . . . . . . . . . . . . . . 8 30 . . Trap . | . . . . . . . . . . . . . . . . . . . . Miscellaneous . | . . . . . . . . . . . . . . . . . . . . Route ------- -11/Scrapyard -10/Materials -9/Materials -9/Mines -9/Exiles -8/Mines -8/Materials -7/Factory -7/Lower Caves -7/Lower Caves -7/Data Miner -6/Proximity Caves -6/Factory -5/Factory (discovered 2 exits: Upp / DSF) -5/DSF -4/Factory (discovered 3 exits: *Res / *Upp x2) -4/Upper Caves -4/Warlord -3/Proximity Caves -3/Research History --------- Turn | Location | Event 9 | -11/Scrapyard | Discovered new exit (range 15) 27 | -11/Scrapyard | Entered Materials 81 | -10/Materials | Discovered new exit (range 10) 87 | -10/Materials | Entered another Materials area 87 | -9/Materials | Evolved 2 slots: Propulsion x2 282 | -9/Materials | Discovered new exit (range 6) 307 | -9/Materials | Entered Mines 335 | -9/Mines | Build established: Mutant 367 | -9/Mines | Deemed a non-threat by the Exiles lab entrance 367 | -9/Mines | Discovered new exit (range 5) 370 | -9/Mines | Entered Exiles 383 | -9/Exiles | Met 8R-AWN 391 | -9/Exiles | Met EX-HEX 411 | -9/Exiles | Met EX-DEC 413 | -9/Exiles | Learned location of Zion (-6) 446 | -9/Exiles | Attacked by the Exiles 476 | -9/Exiles | Discovered new exit (range 14) 525 | -9/Exiles | Destroyed 7 combat bots 525 | -9/Exiles | Entered Mines 655 | -8/Mines | Discovered new exit (range 9) 659 | -8/Mines | Entered Materials 659 | -8/Materials | Evolved 2 slots: Propulsion x2 770 | -8/Materials | Discovered new exit (range 13) 776 | -8/Materials | Entered Factory 776 | -7/Factory | Evolved 2 slots: Power x1, Propulsion x1 932 | -7/Factory | Discovered new exit (range 14) 943 | -7/Factory | Entered Lower Caves 1048 | -7/Lower Caves | Discovered new exit (range 9) 1070 | -7/Lower Caves | Entered another Lower Caves area 1081 | -7/Lower Caves | Encountered a Warlord checkpoint 1178 | -7/Lower Caves | Discovered new exit (range 14) 1224 | -7/Lower Caves | Entered Data Miner 1224 | -7/Data Miner | Discovered new exit (range 6) 1243 | -7/Data Miner | Met Data Miner 1262 | -7/Data Miner | Learned location of Section 7 (-2) 1262 | -7/Data Miner | Acquired the access code to Warlord's prototype stash 1277 | -7/Data Miner | Received God Mode back door access code from Data Miner 1305 | -7/Data Miner | Interfaced with the Data Conduit 1321 | -7/Data Miner | Entered Proximity Caves 1356 | -6/Proximity Caves | Attracted the attention of an 0b10 outpost 1388 | -6/Proximity Caves | Learned Factory interactive machine intel 1442 | -6/Proximity Caves | Attracted the attention of an 0b10 checkpoint 1491 | -6/Proximity Caves | Core integrity fell below 50% 1501 | -6/Proximity Caves | Discovered new exit (range 12) 1507 | -6/Proximity Caves | Entered Factory 1507 | -6/Factory | Evolved 2 slots: Utility x2 1508 | -6/Factory | Loaded intel: 273 machine locations 1509 | -6/Factory | Loaded intel: 54 interactive machine locations 1527 | -6/Factory | Lost 5 parts (3n1u1w) 1735 | -6/Factory | Lost 3 parts (2n1w) 1741 | -6/Factory | Core integrity fell below 50% 1809 | -6/Factory | Discovered new exit (range 5) 1810 | -6/Factory | Identified exit to Factory 1816 | -6/Factory | Entered another Factory area 1816 | -5/Factory | Evolved 2 slots: Propulsion x1, Utility x1 1817 | -5/Factory | Identified exit to Upper Caves 1818 | -5/Factory | Loaded intel: 264 machine locations 1870 | -5/Factory | Identified exit to DSF 1871 | -5/Factory | Entered DSF 1872 | -5/DSF | Loaded intel: 2 machine locations 1900 | -5/DSF | Additional patrols routed to DSF 1908 | -5/DSF | Discovered new exit (range 14) 1919 | -5/DSF | Identified exit to Factory 1941 | -5/DSF | Lost 4 parts (4n) 1943 | -5/DSF | Entered Factory 1943 | -4/Factory | Evolved 2 slots: Propulsion x1, Utility x1 1944 | -4/Factory | Loaded intel: 229 machine locations 2018 | -4/Factory | Discovered new exit (range 10) 2055 | -4/Factory | Identified exit to Research 2111 | -4/Factory | Identified exit to Upper Caves 2216 | -4/Factory | Build established: Hacker-Sprinter 2257 | -4/Factory | Lost 3 parts (3n) 2420 | -4/Factory | Spotted B-86 Titan 2447 | -4/Factory | Entered Upper Caves 2513 | -4/Upper Caves | Attacked by a delusional Derelict stockpiling Unaware 2555 | -4/Upper Caves | Encountered a Warlord checkpoint 2575 | -4/Upper Caves | Attracted the attention of an 0b10 outpost 2581 | -4/Upper Caves | A Derelict revealed a hidden shortcut to "reach the base" 2582 | -4/Upper Caves | Identified exit to Warlord 2584 | -4/Upper Caves | Entered Warlord 2598 | -4/Warlord | System corruption cleaned by Quarantine Array 2671 | -4/Warlord | Learned 4 Armory zone layouts 2671 | -4/Warlord | Learned 4 Research zone layouts 2671 | -4/Warlord | Learned Research stockpile data 2671 | -4/Warlord | Learned Factory terminal intel 2671 | -4/Warlord | Learned Factory scanalyzer intel 2671 | -4/Warlord | Learned Armory recycling unit intel 2671 | -4/Warlord | Learned Research fabricator intel 2679 | -4/Warlord | Met Warlord 2699 | -4/Warlord | Found Prototype Special Weapon 2699 | -4/Warlord | Identified RU-N14's Throwing Claymores v3 2704 | -4/Warlord | Warlord's base attacked by MAIN.C 2758 | -4/Warlord | Opened Warlord's prototype stash 2766 | -4/Warlord | Found Vortex Chain Reactor 2773 | -4/Warlord | Found Prototype Hackware 2773 | -4/Warlord | Identified System Mapper 2821 | -4/Warlord | Build established: Hacker-Mutant 2856 | -4/Warlord | Found Prototype Launcher 2856 | -4/Warlord | Identified Vortex Catalyst Activator 2859 | -4/Warlord | Found Prototype Energy Gun 2859 | -4/Warlord | Identified Vortex Rifle 2861 | -4/Warlord | Found Prototype Energy Cannon 2861 | -4/Warlord | Identified Vortex Cannon 2864 | -4/Warlord | Found Prototype Energy Gun 2864 | -4/Warlord | Identified Vortex Shotgun 3054 | -4/Warlord | Warlord forces counterattacked 3273 | -4/Warlord | Spotted Striker 3316 | -4/Warlord | Spotted Striker 3318 | -4/Warlord | P-80 Master assimilated allied Sentinel 7a 3351 | -4/Warlord | Opened side exit 3362 | -4/Warlord | Spotted Executioner 3379 | -4/Warlord | Warlord base infiltrated, sounded retreat 3389 | -4/Warlord | Spotted Striker 3496 | -4/Warlord | Spotted Striker 3533 | -4/Warlord | Lost 13 allies 3604 | -4/Warlord | Discovered new exit (range 12) 3607 | -4/Warlord | Identified exit to Proximity Caves 3632 | -4/Warlord | Entered Proximity Caves 3632 | -3/Proximity Caves | Accompanied by 1 ally 3721 | -3/Proximity Caves | Discovered exit to Research (range 15) 3726 | -3/Proximity Caves | Entered Research 3726 | -3/Research | Evolved 2 slots: Utility x2 3729 | -3/Research | Loaded intel: 118 machine locations 3730 | -3/Research | Loaded intel: 4 fabricator locations 3824 | -3/Research | Spotted B-86 Titan 3905 | -3/Research | Intercept squad dispatched 3914 | -3/Research | Spotted Tracker 3926 | -3/Research | Spotted Combat Programmer 3981 | -3/Research | Destroyed Tracker 3986 | -3/Research | Spotted B-86 Titan 4000 | -3/Research | Core integrity fell below 50% 4031 | -3/Research | System corruption reached 10% 4049 | -3/Research | Lost 21 parts (1p11n7u2w) 4050 | -3/Research | Core integrity fell below 20% 4057 | -3/Research | Destroyed Combat Programmer 4086 | -3/Research | Destroyed by Y-72 Warden with Railgun Last Messages --------------- 04020_ U-05 Engineer lays Concrete. 04021_ Penetrated by EMDS Slug. 04021_ U-05 Engineer lays Concrete. 04028_ Penetrated by EMDS Slug. 04034_ ALERT: Potential suspicious activity detected, Programmers report to Research Zone 1A. 04042_ Penetrated by EMDS Slug. 04051_ System corrupted: Matter fused (-5). 04051_ Penetrated by EMDS Slug. 04054_ Imp. Gyrokinetic Inverter destroyed. 04057_ Combat Programmer fries systems beyond repair. 04057_ Combat Programmer destroyed. 04060_ Acquired 42 matter. 04071_ Plasma Lance destroyed. 04075_ Acquired Antigrav Array. 04078_ System corrupted: Energy discharge (-32). 04083_ Slammed into Y-72 Warden. 04086_ Penetrated by Slug. Map ----- +----------------------------------------------------+ | ??????????????????????????????? | | ??????????????????????????????? | | ??????????????????????????????? | | ??????????????????????????????? | | ??????????????????????????????? | | ??????????????????????????????? | | ??????????????????????????????? | | "?????????????????????????????? | | "?????????????????????????????? | | "?????????????????????????????? | | ??????????????????????????????? | | ??????????????????????????????? | | ????????????????????"""???????? | | ????????????????????"""???????? | | ????????????????????"""???????? | | ??????????????????????????]???? | | ??????????????????????????????? | | ????????????????????"""???????? | | ????????????????????"""???????? | | ???????????????#????"""???????? | | ???????????????# ?????????????? | | ???????????????# ?????????????? | | ????"""????????# ?????????????? | | ????"""???????## ##???????????? | | ????"""???????# ##########??? | | ??????????????# " @ #??? | | ??????????????# ##%#####Y#??? | | ??????????????## ### #???# #??? | | ???????????????# ??# #???# #??? | | ???????????????# ??# #?###/#### | | ???????????????# ??# #?# # | | ???????????????# ??# #?#= # | | ???????????????? ??# #?# # | | ?????????"""???? ??# #?# # | | ?????????"""???? ??# #?# # | | ???????????"???? ??# #?# # | | ?????????"F"???? ??# #?######## | | ?????????"""???# ###+########?? | | ????????????#### # # | | ????????????+ + # | | ????????????# # """ """ # | | ?? ########## # """ """ ?? | | ?? # """ """ ? | | ? # # | | ? + # | | # """ ]# | | """ # """S"" # | | """ # """""" # | | """ # ? ?? ? | | # ?????? | +----------------------------------------------------+ Best States ------------- Heat Dissipation 84 Energy Generation 55 Energy Capacity 700 Matter Stores 300 Matter Capacity 300 Sight Range 20 Robot Scan Range 18 Terrain Scan Density 210 Additional Mass Support 9 Base Temperature (-) 200 Evasion (%) 71 Targeting Accuracy 8 Melee Accuracy 6 Recoil Reduction 1 Offensive Hacking 22 Defensive Hacking 24 Item Schematics ----------------- Combat Drone Bay | -7/Data Miner | Free Lgt. Regenerative Plating | -7/Data Miner | Free Cld. Aerolev Unit | -7/Data Miner | Free Thermal Defense Suite | -7/Data Miner | Free Force Rifle | -7/Data Miner | Free Antigrav System | -7/Data Miner | Free Imp. Coolant Injector | -7/Data Miner | Free Hyp. Coil Gun | -7/Data Miner | Free Linear Gravjet | -4/Factory | Scanalyzed Imp. Plasma Cutter | -4/Factory | Scanalyzed Imp. Melee Analysis Suite | -4/Factory | Scanalyzed Adv. Cooling System | -4/Factory | Scanalyzed Imp. Actuator Array | -4/Factory | Scanalyzed Robot Schematics ------------------ B-48 Gladiator | -7/Data Miner | Free A-15 Conveyor | -7/Data Miner | Free G-47 Trooper | -7/Data Miner | Free R-10 Processor | -7/Data Miner | Free M-22 Extractor | -7/Data Miner | Free Fabricated ------------ Nothing Repaired ---------- Nothing Alien Tech Used ----------------- None Achievements -------------- None Challenges ------------ None Game ------ Seed DisposableNovaBroadsword Manual? 0 Play Time 01:20:57 Cumulative 215.6 hours Start 2025.05.30 @ 20:29:50 End 2025.05.30 @ 21:48:17 Sessions 1 Manual Loads 0 Difficulty Rogue Special Mode None Game No. 227 Rogue 227 Adventurer 0 Explorer 0 Win Type - Total 1 Types 1/0/0/0/0/0/0/0/0/0 Lore% 74 Gallery% 73 Achievement% 64 Wizard Run 0 Options --------- Layout 1 ASCII 0 Keyboard 0 Movement Numpad Keybinds 0 Fullscreen 1 Font 24/Smallcaps Map View 50x35 Zoom Use 0% Tactical HUD 1 Map Filters NONE Filters NONE Steam 1 RUN: f90da50d-0ccd-4200-bfb4-713e588777c6